[Event "World Senior chT-50 2019"]
[Site "Rhodes"]
[Date "2019.04.18"]
[Round "3.18"]
[White "Ross, Paul"]
[Black "Ilandzis, Spyridon"]
[Result "0-1"]
[ECO "E14"]
[WhiteElo "2237"]
[BlackElo "2021"]
[PlyCount "110"]
[EventDate "2019.04.16"]
[EventType "team-tourn"]
[EventCountry "GRE"]
[TimeControl "40/5400+30:1800+30"]

1. d4 {[%emt 0:00:00]} Nf6 {[%emt 0:00:00]} 2. c4 {[%emt 0:00:00]} e6 {[%emt 0:00:49]} 3. Nf3 {[%emt 0:00:28]} c5 {[%emt 0:00:33]} 4. e3 {[%emt 0:01:42]} cxd4 {[%emt 0:04:45]} 5. exd4 {[%emt 0:02:14]} b6 {[%emt 0:00:58]} 6. Nc3 {[%emt 0:02:30]} Bb4 {[%emt 0:01:09]} 7. Qb3 {[%emt 0:01:18]} Bxc3+ {[%emt 0:07:26]} 8. Qxc3 {[%emt 0:02:50]} O-O {[%emt 0:00:23]} 9. Be2 {[%emt 0:00:39]} Ne4 {[%emt 0:01:35]} 10. Qc2 {[%emt 0:01:24]} Bb7 {[%emt 0:00:17]} 11. O-O {[%emt 0:00:42]} f5 {[%emt 0:01:03]} 12. Rd1 {[%emt 0:12:22]} d6 {[%emt 0:04:00]} 13. b3 {[%emt 0:12:44]} Nd7 {[%emt 0:06:14]} 14. Bb2 {[%emt 0:01:03]} g5 {[%emt 0:05:55]} 15. d5 {[%emt 0:05:27]} e5 {[%emt 0:01:07]} 16. Nd2 {[%emt 0:01:16]} Nxd2 {[%emt 0:10:05]} 17. Qxd2 {[%emt 0:00:33]} f4 {[%emt 0:06:31]} 18. f3 {[%emt 0:03:03]} h5 {[%emt 0:09:50]} 19. b4 {[%emt 0:01:11]} Rf7 {[%emt 0:04:34]} 20. Rac1 {[%emt 0:01:08]} Rc8 {[%emt 0:01:23]} 21. Kh1 {[%emt 0:00:47]} Rg7 {[%emt 0:00:45]} 22. Rg1 {[%emt 0:07:16]} g4 {[%emt 0:02:13]} 23. g3 {[%emt 0:00:41]} gxf3 {[%emt 0:07:49]} 24. Bxf3 {[%emt 0:04:25]} fxg3 {[%emt 0:00:50]} 25. Rxg3 {[%emt 0:04:59]} Rxg3 {[%emt 0:02:08]} 26. hxg3 {[%emt 0:00:06]} Qf6 {[%emt 0:04:16]} 27. Kg2 {[%emt 0:05:22]} Qg6 {[%emt 0:04:47]} 28. Qe2 {[%emt 0:08:07]} Nf6 {[%emt 0:03:04]} 29. Rh1 {[%emt 0:04:54]} b5 {[%emt 0:03:53]} 30. c5 {[%emt 0:07:01]} Nxd5 {[%emt 0:01:23]} 31. Rh4 {[%emt 0:01:55]} Bc6 {[%emt 0:02:00]} 32. Be4 {[%emt 0:00:53]} Nf4+ {[%emt 0:01:12]} 33. Kh2 {[%emt 0:00:45]} Qxg3+ {[%emt 0:02:04]} 34. Kxg3 {[%emt 0:00:09]} Nxe2+ {[%emt 0:00:03]} 35. Kf3 {[%emt 0:01:28]} Nf4 {[%emt 0:01:11]} 36. cxd6 {[%emt 0:00:49]} Bxe4+ {[%emt 0:01:02]} 37. Kxe4 {[%emt 0:00:03]} Kf7 {[%emt 0:00:37]} 38. Bxe5 {[%emt 0:00:21]} Ne6 {[%emt 0:00:21]} 39. Kd5 {[%emt 0:00:00]} Nf8 {[%emt 0:00:00]} 40. Rxh5 {[%emt 0:00:00]} Rc2 {[%emt 0:00:00]} 41. Rf5+ {[%emt 0:04:48]} Ke8 {[%emt 0:02:13]} 42. Rxf8+ {[%emt 0:00:32]} Kxf8 {[%emt 0:00:08]} 43. Ke6 {[%emt 0:00:12]} Rc6 {[%emt 0:05:47]} 44. Kd7 {[%emt 0:01:27]} Rc2 {[%emt 0:06:15]} 45. a3 {[%emt 0:00:38]} Kf7 {[%emt 0:00:21]} 46. Bd4 {[%emt 0:00:52]} a6 {[%emt 0:01:37]} 47. Bc5 {[%emt 0:00:18]} Rd2 {[%emt 0:01:02]} 48. Kc6 {[%emt 0:04:36]} Ke6 {[%emt 0:00:10]} 49. Kb6 {[%emt 0:00:44]} Kd7 {[%emt 0:00:19]} 50. Kxa6 {[%emt 0:08:39]} Kc6 {[%emt 0:00:10]} 51. a4 {[%emt 0:14:31]} bxa4 {[%emt 0:00:20]} 52. Be3 {[%emt 0:00:06]} Rd3 {[%emt 0:07:05]} 53. b5+ {[%emt 0:00:12]} Kxd6 {[%emt 0:00:11]} 54. Bf4+ {[%emt 0:00:13]} Kd5 {[%emt 0:04:02]} 55. Bg5 {[%emt 0:05:22]} a3 {[%emt 0:03:05]} 0-1

[Event "World Senior chT-50 2019"]
[Site "Rhodes"]
[Date "2019.04.18"]
[Round "3.19"]
[White "Hrisanthopoulos, Dimitrios"]
[Black "Barron, Michael"]
[Result "0-1"]
[ECO "C97"]
[WhiteElo "1995"]
[BlackElo "2124"]
[Annotator "NA"]
[PlyCount "102"]
[EventDate "2019.04.16"]
[EventType "team-tourn"]
[EventCountry "GRE"]
[SourceTitle "playchess.com"]
[Source "ChessBase"]
[SourceQuality "1"]
[WhiteTeam "Greece"]
[BlackTeam "Canada"]
[WhiteTeamCountry "GRE"]
[BlackTeamCountry "CAN"]
[TimeControl "40/5400+30:1800+30"]

1. e4 {[%emt 0:00:00]} e5 {[%emt 0:00:00]} 2. Nf3 {[%emt 0:00:00]} Nc6 {[%emt 0:00:00]} 3. Bb5 {[%emt 0:00:03]} a6 {[%emt 0:00:00]} 4. Ba4 {[%emt 0:00:15]} Nf6 {[%emt 0:00:00]} 5. O-O {[%emt 0:00:15]} Be7 {[%emt 0:00:00]} 6. Re1 {[%emt 0:00:13]} b5 {[%emt 0:00:00]} 7. Bb3 {[%emt 0:00:40]} O-O {[%emt 0:00:00]} 8. h3 {[%emt 0:00:00]} d6 {[%emt 0:00:00]} 9. c3 {[%emt 0:00:07]} Na5 {[%emt 0:00:03]} 10. Bc2 {[%emt 0:00:15]} c5 {[%emt 0:00:02]} 11. d4 {[%emt 0:00:26]} Qc7 {[%emt 0:00:03]} 12. Nbd2 {[%emt 0:00:35]} Bb7 {[%emt 0:00:04]} 13. d5 {[%emt 0:01:11]} g6 {[%emt 0:00:03]} 14. Nf1 {[%emt 0:00:33]} Nh5 {[%emt 0:00:03]} 15. Bh6 {[%emt 0:01:27]} Rfe8 {[%emt 0:00:13]} 16. b3 {[%emt 0:01:43]} Bf8 {[%emt 0:00:11]} 17. Be3 {[%emt 0:03:11]} Bg7 {[%emt 0:01:42]} 18. Kh2 {[%emt 0:06:47]} Bc8 {[%emt 0:00:57]} 19. Rc1 {[%emt 0:02:56]} Bd7 {[%emt 0:00:33]} 20. Qd2 {[%emt 0:00:38]} c4 {[%emt 0:00:22]} 21. b4 {[%emt 0:01:19]} Nb7 {[%emt 0:00:02]} 22. g4 {[%emt 0:05:08]} Nf4 {[%emt 0:06:49]} 23. Ng3 {[%emt 0:07:10]} a5 {[%emt 0:00:32]} 24. a3 {[%emt 0:00:51]} axb4 {[%emt 0:01:27]} 25. axb4 {[%emt 0:01:49]} Ra3 {[%emt 0:00:25]} 26. Ra1 {[%emt 0:01:17]} Rea8 {[%emt 0:00:06]} 27. Rxa3 {[%emt 0:00:46]} Rxa3 {[%emt 0:00:02]} 28. Bxf4 {[%emt 0:00:38]} exf4 {[%emt 0:00:07]} 29. Ne2 {[%emt 0:00:11]} Be5 {[%emt 0:02:15]} 30. Ned4 {[%emt 0:04:04]} Nd8 {[%emt 0:03:06]} 31. Kg2 {[%emt 0:03:53]} f6 {[%emt 0:01:53]} 32. Rd1 {[%emt 0:08:08]} Qc8 {[%emt 0:02:02]} 33. Nxe5 {[%emt 0:20:32]} fxe5 {[%emt 0:00:31]} 34. Nc6 {[%emt 0:00:40]} Kg7 {[%emt 0:05:11]} 35. f3 {[%emt 0:08:45]} Nf7 {[%emt 0:00:09]} 36. Na5 {[%emt 0:05:13]} h5 {[%emt 0:01:56]} 37. Rg1 {[%emt 0:04:50]} Qd8 {[%emt 0:01:10]} 38. Qe1 {[%emt 0:02:10]} hxg4 {[%emt 0:10:36]} 39. hxg4 {[%emt 0:00:00]} Qb6 {[%emt 0:00:00]} 40. Bb1 {[%emt 0:00:00]} Qe3 {[%emt 0:00:00]} 41. Qxe3 {[%emt 0:09:14]} fxe3 {[%emt 0:00:14]} 42. Rc1 {[%emt 0:00:11]} Kf6 {[%emt 0:04:33]} 43. Kf1 {[%emt 0:07:50]} Kg5 {[%emt 0:00:08]} 44. Ke2 {[%emt 0:01:03]} Kf4 {[%emt 0:00:03]} 45. Nb7 {[%emt 0:02:03]} Bc8 {[%emt 0:00:50]} 46. Na5 {[%emt 0:00:59]} Ng5 {[%emt 0:00:05]} 47. Nc6 {[%emt 0:02:18]} Nxf3 {[%emt 0:01:18]} 48. Nd8 {[%emt 0:08:21]} Nd4+ {[%emt 0:03:37]} 49. cxd4 {[%emt 0:01:39]} Bxg4+ {[%emt 0:00:02]} 50. Ke1 {[%emt 0:02:17]} exd4 {[%emt 0:00:02]} 51. Ne6+ {[%emt 0:02:25]} Ke5 {[%emt 0:00:03]} 0-1

[Event "World Senior chT-50 2019"]
[Site "Rhodes"]
[Date "2019.04.18"]
[Round "3.20"]
[White "Chernik, Dmitry"]
[Black "Papadimitriou, Loukas"]
[Result "1/2-1/2"]
[ECO "C00"]
[WhiteElo "1868"]
[BlackElo "1943"]
[PlyCount "112"]
[EventDate "2019.04.16"]
[EventType "team-tourn"]
[EventCountry "GRE"]
[TimeControl "40/5400+30:1800+30"]

1. e4 {[%emt 0:00:00]} e6 {[%emt 0:00:00]} 2. Qe2 {[%emt 0:00:00]} c5 {[%emt 0:00:09]} 3. f4 {[%emt 0:00:00]} Nc6 {[%emt 0:00:08]} 4. Nf3 {[%emt 0:00:11]} g6 {[%emt 0:00:15]} 5. d3 {[%emt 0:00:12]} Bg7 {[%emt 0:00:04]} 6. c3 {[%emt 0:00:08]} Nge7 {[%emt 0:00:19]} 7. g3 {[%emt 0:00:14]} O-O {[%emt 0:01:01]} 8. Bg2 {[%emt 0:00:19]} d6 {[%emt 0:00:31]} 9. O-O {[%emt 0:00:12]} b5 {[%emt 0:00:19]} 10. Nbd2 {[%emt 0:00:18]} b4 {[%emt 0:03:50]} 11. c4 {[%emt 0:00:22]} Rb8 {[%emt 0:09:22]} 12. Rb1 {[%emt 0:00:08]} Qa5 {[%emt 0:00:51]} 13. Ra1 {[%emt 0:00:56]} b3 {[%emt 0:02:07]} 14. a3 {[%emt 0:04:24]} e5 {[%emt 0:07:04]} 15. Rb1 {[%emt 0:07:54]} exf4 {[%emt 0:10:40]} 16. gxf4 {[%emt 0:00:10]} Bg4 {[%emt 0:00:10]} 17. Qe1 {[%emt 0:08:02]} Qc7 {[%emt 0:02:57]} 18. Qh4 {[%emt 0:01:43]} Qd7 {[%emt 0:02:17]} 19. h3 {[%emt 0:01:02]} Bxf3 {[%emt 0:13:44]} 20. Nxf3 {[%emt 0:00:09]} f5 {[%emt 0:00:23]} 21. Bd2 {[%emt 0:07:13]} Nd4 {[%emt 0:03:03]} 22. Nxd4 {[%emt 0:01:09]} Bxd4+ {[%emt 0:00:15]} 23. Kh1 {[%emt 0:00:20]} Kh8 {[%emt 0:01:17]} 24. Bc3 {[%emt 0:00:59]} Nc6 {[%emt 0:02:20]} 25. exf5 {[%emt 0:00:38]} Rxf5 {[%emt 0:00:13]} 26. Be4 {[%emt 0:01:56]} Rh5 {[%emt 0:00:22]} 27. Bxd4+ {[%emt 0:02:10]} Nxd4 {[%emt 0:00:12]} 28. Qf6+ {[%emt 0:00:15]} Qg7 {[%emt 0:02:58]} 29. Qxd6 {[%emt 0:01:59]} Rf8 {[%emt 0:00:14]} 30. Kh2 {[%emt 0:03:26]} Qh6 {[%emt 0:03:31]} 31. Bg2 {[%emt 0:00:15]} Rhf5 {[%emt 0:00:08]} 32. Rbe1 {[%emt 0:02:30]} Qh4 {[%emt 0:05:03]} 33. Re5 {[%emt 0:05:50]} Kg7 {[%emt 0:11:23]} 34. Qxc5 {[%emt 0:01:16]} Rxf4 {[%emt 0:00:28]} 35. Re4 {[%emt 0:04:27]} Ne2 {[%emt 0:02:08]} 36. Qe7+ {[%emt 0:05:38]} Qxe7 {[%emt 0:00:55]} 37. Rxe7+ {[%emt 0:00:10]} Kh6 {[%emt 0:02:47]} 38. Rxf4 {[%emt 0:00:43]} Nxf4 {[%emt 0:00:04]} 39. Be4 {[%emt 0:00:54]} Rd8 {[%emt 0:00:46]} 40. Rxa7 {[%emt 0:11:07]} Nxd3 {[%emt 0:00:05]} 41. Bd5 {[%emt 0:03:36]} Re8 {[%emt 0:01:47]} 42. Bf3 {[%emt 0:03:05]} Re3 {[%emt 0:01:42]} 43. Kg2 {[%emt 0:09:25]} Nxb2 {[%emt 0:03:56]} 44. c5 {[%emt 0:01:18]} Rc3 {[%emt 0:01:36]} 45. c6 {[%emt 0:00:13]} Nd3 {[%emt 0:00:38]} 46. Be4 {[%emt 0:00:56]} Nc5 {[%emt 0:07:55]} 47. Bb1 {[%emt 0:01:18]} Ne6 {[%emt 0:00:47]} 48. Rb7 {[%emt 0:00:59]} Kg5 {[%emt 0:06:06]} 49. a4 {[%emt 0:01:37]} Nf4+ {[%emt 0:07:08]} 50. Kf2 {[%emt 0:00:04]} Nxh3+ {[%emt 0:00:17]} 51. Ke2 {[%emt 0:00:03]} Rxc6 {[%emt 0:00:46]} 52. Rxh7 {[%emt 0:00:28]} Ng1+ {[%emt 0:00:56]} 53. Kf2 {[%emt 0:02:59]} Rc1 {[%emt 0:00:10]} 54. Bd3 {[%emt 0:00:43]} b2 {[%emt 0:02:44]} 55. Rh1 {[%emt 0:00:43]} Nh3+ {[%emt 0:01:06]} 56. Rxh3 {[%emt 0:00:26]} b1=Q {[%emt 0:00:20]} 1/2-1/2

[Event "World Senior chT-50 2019"]
[Site "Rhodes"]
[Date "2019.04.18"]
[Round "3.21"]
[White "Lewis, Andrew P"]
[Black "Zeidler, Sven P."]
[Result "1-0"]
[ECO "A26"]
[WhiteElo "2347"]
[BlackElo "2168"]
[Annotator "NA"]
[PlyCount "57"]
[EventDate "2019.04.16"]
[EventType "team-tourn"]
[EventCountry "GRE"]
[SourceTitle "playchess.com"]
[Source "ChessBase"]
[SourceQuality "1"]
[WhiteTeam "England"]
[BlackTeam "Wales"]
[WhiteTeamCountry "ENG"]
[BlackTeamCountry "WLS"]
[TimeControl "40/5400+30:1800+30"]

1. Nf3 {[%emt 0:00:00]} f5 {[%emt 0:00:00]} 2. g3 {[%emt 0:00:00]} Nf6 {[%emt 0:00:00]} 3. Bg2 {[%emt 0:00:09]} g6 {[%emt 0:00:02]} 4. O-O {[%emt 0:00:12]} Bg7 {[%emt 0:00:05]} 5. c4 {[%emt 0:00:08]} O-O {[%emt 0:00:14]} 6. Nc3 {[%emt 0:00:12]} d6 {[%emt 0:00:06]} 7. Rb1 {[%emt 0:00:16]} e5 {[%emt 0:00:11]} 8. d3 {[%emt 0:00:13]} Nc6 {[%emt 0:00:11]} 9. b4 {[%emt 0:00:31]} h6 {[%emt 0:00:16]} 10. b5 {[%emt 0:00:37]} Ne7 {[%emt 0:00:05]} 11. a4 {[%emt 0:00:20]} g5 {[%emt 0:04:12]} 12. Nd2 {[%emt 0:08:43]} Qe8 {[%emt 0:07:07]} 13. Ba3 {[%emt 0:15:58]} Qh5 {[%emt 0:19:58]} 14. c5 {[%emt 0:05:27]} f4 {[%emt 0:11:38]} 15. cxd6 {[%emt 0:04:07]} cxd6 {[%emt 0:00:28]} 16. Bxd6 {[%emt 0:13:48]} fxg3 {[%emt 0:10:00]} 17. fxg3 {[%emt 0:04:41]} Ng4 {[%emt 0:01:01]} 18. Qb3+ {[%emt 0:07:45]} Kh7 {[%emt 0:02:12]} 19. h3 {[%emt 0:07:27]} Ne3 {[%emt 0:10:13]} 20. Rxf8 {[%emt 0:00:08]} Bxf8 {[%emt 0:01:44]} 21. g4 {[%emt 0:05:23]} Bxg4 {[%emt 0:03:00]} 22. hxg4 {[%emt 0:00:42]} Qxg4 {[%emt 0:00:41]} 23. Qf7+ {[%emt 0:00:21]} Bg7 {[%emt 0:00:25]} 24. Qf3 {[%emt 0:00:30]} Qd4 {[%emt 0:03:44]} 25. Bxe7 {[%emt 0:09:01]} Nxg2+ {[%emt 0:02:55]} 26. Kxg2 {[%emt 0:00:15]} Qxc3 {[%emt 0:00:14]} 27. Ne4 {[%emt 0:01:17]} Qc2 {[%emt 0:01:11]} 28. Nxg5+ {[%emt 0:05:30]} hxg5 {[%emt 0:00:16]} 29. Qf5+ {[%emt 0:00:46]} 1-0

[Event "World Senior chT-50 2019"]
[Site "Rhodes"]
[Date "2019.04.18"]
[Round "3.22"]
[White "Fletcher, John"]
[Black "Frostick, Clive A"]
[Result "1/2-1/2"]
[ECO "D02"]
[WhiteElo "1974"]
[BlackElo "2121"]
[Annotator "NA"]
[PlyCount "70"]
[EventDate "2019.04.16"]
[EventType "team-tourn"]
[EventCountry "GRE"]
[SourceTitle "playchess.com"]
[Source "ChessBase"]
[SourceQuality "1"]
[WhiteTeam "Wales"]
[BlackTeam "England"]
[WhiteTeamCountry "WLS"]
[BlackTeamCountry "ENG"]
[TimeControl "40/5400+30:1800+30"]

1. d4 {[%emt 0:00:00]} d5 {[%emt 0:00:19]} 2. Nf3 {[%emt 0:00:00]} e6 {[%emt 0:04:24]} 3. Bf4 {[%emt 0:01:27]} Bd6 {[%emt 0:13:28]} 4. Bg3 {[%emt 0:01:09]} Qe7 {[%emt 0:02:53]} 5. e3 {[%emt 0:04:31]} Nd7 {[%emt 0:04:54]} 6. c3 {[%emt 0:07:36]} Ngf6 {[%emt 0:09:26]} 7. Nbd2 {[%emt 0:05:02]} e5 {[%emt 0:04:31]} 8. dxe5 {[%emt 0:01:06]} Nxe5 {[%emt 0:00:07]} 9. Nxe5 {[%emt 0:01:32]} Bxe5 {[%emt 0:00:08]} 10. Bd3 {[%emt 0:03:37]} c6 {[%emt 0:02:56]} 11. Qc2 {[%emt 0:06:23]} Bg4 {[%emt 0:06:02]} 12. Bxe5 {[%emt 0:10:02]} Qxe5 {[%emt 0:00:16]} 13. h3 {[%emt 0:00:10]} Bh5 {[%emt 0:05:11]} 14. Nf3 {[%emt 0:06:50]} Bxf3 {[%emt 0:07:14]} 15. gxf3 {[%emt 0:00:06]} g6 {[%emt 0:02:48]} 16. O-O-O {[%emt 0:01:06]} O-O-O {[%emt 0:00:23]} 17. h4 {[%emt 0:02:26]} Nd7 {[%emt 0:09:05]} 18. f4 {[%emt 0:09:53]} Qf6 {[%emt 0:05:29]} 19. Qa4 {[%emt 0:02:04]} Kb8 {[%emt 0:01:30]} 20. Qb4 {[%emt 0:01:26]} Rhe8 {[%emt 0:04:44]} 21. h5 {[%emt 0:01:16]} c5 {[%emt 0:00:21]} 22. Qa4 {[%emt 0:01:55]} Nb6 {[%emt 0:00:57]} 23. Qb5 {[%emt 0:01:01]} d4 {[%emt 0:01:22]} 24. cxd4 {[%emt 0:07:36]} cxd4 {[%emt 0:00:37]} 25. Bc2 {[%emt 0:00:13]} dxe3 {[%emt 0:00:51]} 26. Rxd8+ {[%emt 0:01:26]} Qxd8 {[%emt 0:00:12]} 27. fxe3 {[%emt 0:00:51]} Rxe3 {[%emt 0:00:17]} 28. hxg6 {[%emt 0:00:29]} hxg6 {[%emt 0:00:05]} 29. Qc5 {[%emt 0:03:30]} Re2 {[%emt 0:03:55]} 30. Qc3 {[%emt 0:01:35]} Qc7 {[%emt 0:03:21]} 31. Qxc7+ {[%emt 0:01:18]} Kxc7 {[%emt 0:00:03]} 32. Rh7 {[%emt 0:00:11]} Re7 {[%emt 0:02:42]} 33. Bxg6 {[%emt 0:01:06]} Nd5 {[%emt 0:00:06]} 34. Rxf7 {[%emt 0:00:27]} Rxf7 {[%emt 0:00:15]} 35. Bxf7 {[%emt 0:00:04]} Nxf4 {[%emt 0:00:15]} 1/2-1/2

[Event "World Senior chT-50 2019"]
[Site "Rhodes"]
[Date "2019.04.18"]
[Round "3.23"]
[White "Fraser-Mitchell, Jeremy N"]
[Black "Hughes, Anthony"]
[Result "1-0"]
[ECO "D35"]
[WhiteElo "2073"]
[BlackElo "1910"]
[PlyCount "87"]
[EventDate "2019.04.16"]
[EventType "team-tourn"]
[EventCountry "GRE"]
[TimeControl "40/5400+30:1800+30"]

1. d4 {[%emt 0:00:00]} d5 {[%emt 0:00:00]} 2. c4 {[%emt 0:00:00]} e6 {[%emt 0:00:00]} 3. Nc3 {[%emt 0:00:00]} Be7 {[%emt 0:00:00]} 4. cxd5 {[%emt 0:00:49]} exd5 {[%emt 0:00:00]} 5. Bf4 {[%emt 0:00:17]} Nf6 {[%emt 0:00:37]} 6. e3 {[%emt 0:00:08]} c6 {[%emt 0:00:30]} 7. Bd3 {[%emt 0:00:39]} O-O {[%emt 0:03:08]} 8. h3 {[%emt 0:02:56]} Re8 {[%emt 0:04:40]} 9. Nf3 {[%emt 0:01:09]} Nbd7 {[%emt 0:01:05]} 10. O-O {[%emt 0:02:22]} Nf8 {[%emt 0:01:42]} 11. Qc2 {[%emt 0:00:31]} Ng6 {[%emt 0:02:13]} 12. Bh2 {[%emt 0:01:17]} Bd6 {[%emt 0:00:53]} 13. Bxd6 {[%emt 0:01:48]} Qxd6 {[%emt 0:01:15]} 14. Rab1 {[%emt 0:02:03]} a5 {[%emt 0:14:37]} 15. Rfc1 {[%emt 0:02:40]} Be6 {[%emt 0:05:12]} 16. Na4 {[%emt 0:07:26]} Nd7 {[%emt 0:02:46]} 17. a3 {[%emt 0:05:51]} Rec8 {[%emt 0:17:40]} 18. Ng5 {[%emt 0:09:53]} Qe7 {[%emt 0:07:33]} 19. Nxe6 {[%emt 0:00:20]} fxe6 {[%emt 0:01:34]} 20. Bxg6 {[%emt 0:01:40]} hxg6 {[%emt 0:00:07]} 21. Qxg6 {[%emt 0:00:08]} e5 {[%emt 0:09:08]} 22. Nc3 {[%emt 0:09:36]} Rf8 {[%emt 0:01:21]} 23. Qd3 {[%emt 0:08:30]} Qh4 {[%emt 0:01:42]} 24. Rc2 {[%emt 0:01:18]} Rae8 {[%emt 0:05:12]} 25. b4 {[%emt 0:01:19]} axb4 {[%emt 0:03:50]} 26. axb4 {[%emt 0:00:07]} Re6 {[%emt 0:02:47]} 27. b5 {[%emt 0:03:27]} e4 {[%emt 0:04:11]} 28. Qf1 {[%emt 0:01:42]} Rg6 {[%emt 0:03:44]} 29. Kh1 {[%emt 0:01:41]} Nf6 {[%emt 0:00:38]} 30. bxc6 {[%emt 0:03:44]} bxc6 {[%emt 0:01:15]} 31. g3 {[%emt 0:14:42]} Qh5 {[%emt 0:00:30]} 32. Ne2 {[%emt 0:00:53]} Qf5 {[%emt 0:03:17]} 33. Nf4 {[%emt 0:13:23]} Rh6 {[%emt 0:00:12]} 34. Rxc6 {[%emt 0:00:19]} g5 {[%emt 0:00:19]} 35. Ne6 {[%emt 0:01:34]} Rxh3+ {[%emt 0:00:47]} 36. Kg1 {[%emt 0:00:04]} Qh7 {[%emt 0:01:17]} 37. Qg2 {[%emt 0:00:06]} g4 {[%emt 0:02:10]} 38. Nxf8 {[%emt 0:00:58]} Qe7 {[%emt 0:00:33]} 39. Ng6 {[%emt 0:00:43]} Qa3 {[%emt 0:00:22]} 40. Rxf6 {[%emt 0:00:00]} Qd3 {[%emt 0:00:00]} 41. Rfb6 {[%emt 0:00:54]} Qc2 {[%emt 0:01:55]} 42. Qf1 {[%emt 0:04:53]} Qa4 {[%emt 0:00:53]} 43. Qd1 {[%emt 0:01:01]} Qa7 {[%emt 0:00:33]} 44. Rb8+ {[%emt 0:00:06]} 1-0

[Event "World Senior chT-50 2019"]
[Site "Rhodes"]
[Date "2019.04.18"]
[Round "3.24"]
[White "Smith, Lynda"]
[Black "Jackson, Sheila"]
[Result "1/2-1/2"]
[ECO "C68"]
[WhiteElo "1824"]
[BlackElo "2051"]
[Annotator "NA"]
[PlyCount "74"]
[EventDate "2019.04.16"]
[EventType "team-tourn"]
[EventCountry "GRE"]
[SourceTitle "playchess.com"]
[Source "ChessBase"]
[SourceQuality "1"]
[WhiteTeam "Wales"]
[BlackTeam "England"]
[WhiteTeamCountry "WLS"]
[BlackTeamCountry "ENG"]
[TimeControl "40/5400+30:1800+30"]

1. e4 {[%emt 0:00:00]} e5 {[%emt 0:00:00]} 2. Nf3 {[%emt 0:00:00]} Nc6 {[%emt 0:00:00]} 3. Bb5 {[%emt 0:00:00]} a6 {[%emt 0:00:00]} 4. Bxc6 {[%emt 0:00:00]} dxc6 {[%emt 0:00:00]} 5. d4 {[%emt 0:00:00]} exd4 {[%emt 0:00:00]} 6. Qxd4 {[%emt 0:00:00]} Qxd4 {[%emt 0:00:01]} 7. Nxd4 {[%emt 0:00:00]} Bd6 {[%emt 0:00:11]} 8. Be3 {[%emt 0:00:38]} Ne7 {[%emt 0:00:18]} 9. Nd2 {[%emt 0:00:27]} Ng6 {[%emt 0:09:52]} 10. Nc4 {[%emt 0:02:46]} Bf4 {[%emt 0:08:11]} 11. Bxf4 {[%emt 0:03:23]} Nxf4 {[%emt 0:00:01]} 12. g3 {[%emt 0:01:57]} Ne6 {[%emt 0:01:30]} 13. Nxe6 {[%emt 0:00:49]} Bxe6 {[%emt 0:00:05]} 14. Ne3 {[%emt 0:01:05]} O-O-O {[%emt 0:00:51]} 15. Ke2 {[%emt 0:04:44]} Rd4 {[%emt 0:07:19]} 16. f3 {[%emt 0:01:15]} Rhd8 {[%emt 0:00:58]} 17. Rhd1 {[%emt 0:01:33]} c5 {[%emt 0:06:59]} 18. a3 {[%emt 0:03:42]} b5 {[%emt 0:05:25]} 19. g4 {[%emt 0:03:20]} g5 {[%emt 0:09:10]} 20. c3 {[%emt 0:03:47]} Rxd1 {[%emt 0:01:26]} 21. Rxd1 {[%emt 0:04:28]} Rxd1 {[%emt 0:01:41]} 22. Nxd1 {[%emt 0:02:18]} Kd7 {[%emt 0:05:27]} 23. Ke3 {[%emt 0:02:57]} Kd6 {[%emt 0:09:15]} 24. Nf2 {[%emt 0:01:20]} f6 {[%emt 0:02:00]} 25. Nd3 {[%emt 0:01:47]} c4 {[%emt 0:00:55]} 26. Nf2 {[%emt 0:01:36]} Ke5 {[%emt 0:02:33]} 27. Nh1 {[%emt 0:05:59]} c5 {[%emt 0:01:26]} 28. Ng3 {[%emt 0:00:52]} Bf7 {[%emt 0:01:23]} 29. Nf5 {[%emt 0:06:22]} h5 {[%emt 0:03:08]} 30. gxh5 {[%emt 0:05:20]} Bxh5 {[%emt 0:00:01]} 31. h4 {[%emt 0:01:03]} Bg6 {[%emt 0:10:09]} 32. hxg5 {[%emt 0:02:27]} fxg5 {[%emt 0:00:39]} 33. Ne7 {[%emt 0:01:43]} Be8 {[%emt 0:03:23]} 34. Nd5 {[%emt 0:01:42]} Bc6 {[%emt 0:00:38]} 35. Ne7 {[%emt 0:01:48]} Bd7 {[%emt 0:03:30]} 36. Nd5 {[%emt 0:02:07]} Bc6 {[%emt 0:00:33]} 37. Ne7 {[%emt 0:04:17]} Bxe4 {Kxe4+} 1/2-1/2

[Event "World Senior chT-50 2019"]
[Site "Rhodes"]
[Date "2019.04.18"]
[Round "3.25"]
[White "Burchardt, Brigitte"]
[Black "Yrjola, Jouni"]
[Result "0-1"]
[ECO "B26"]
[WhiteElo "2136"]
[BlackElo "2327"]
[PlyCount "78"]
[EventDate "2019.04.16"]
[EventType "team-tourn"]
[EventCountry "GRE"]
[TimeControl "40/5400+30:1800+30"]

1. e4 {[%emt 0:00:00]} c5 {[%emt 0:00:00]} 2. Nc3 {[%emt 0:00:00]} Nc6 {[%emt 0:00:13]} 3. g3 {[%emt 0:00:00]} g6 {[%emt 0:00:10]} 4. Bg2 {[%emt 0:00:00]} Bg7 {[%emt 0:00:07]} 5. d3 {[%emt 0:00:00]} d6 {[%emt 0:00:23]} 6. Be3 {[%emt 0:00:00]} Rb8 {[%emt 0:01:22]} 7. Qd2 {[%emt 0:00:04]} b5 {[%emt 0:00:09]} 8. f4 {[%emt 0:01:17]} b4 {[%emt 0:01:15]} 9. Nd1 {[%emt 0:00:05]} Bg4 {[%emt 0:02:57]} 10. Nf3 {[%emt 0:02:48]} Nd4 {[%emt 0:02:08]} 11. O-O {[%emt 0:00:41]} Bxf3 {[%emt 0:01:29]} 12. Bxf3 {[%emt 0:00:05]} Nxf3+ {[%emt 0:03:21]} 13. Rxf3 {[%emt 0:00:06]} Nf6 {[%emt 0:00:09]} 14. h3 {[%emt 0:09:31]} O-O {[%emt 0:10:00]} 15. Kh2 {[%emt 0:07:26]} Qa5 {[%emt 0:16:39]} 16. a3 {[%emt 0:13:44]} Qa6 {[%emt 0:24:00]} 17. Qc1 {[%emt 0:10:15]} b3 {[%emt 0:02:35]} 18. c4 {[%emt 0:00:44]} e6 {[%emt 0:00:20]} 19. Nf2 {[%emt 0:06:59]} Qc6 {[%emt 0:02:56]} 20. Rb1 {[%emt 0:05:33]} Nd7 {[%emt 0:01:51]} 21. Qd1 {[%emt 0:05:45]} f5 {[%emt 0:03:08]} 22. Qe2 {[%emt 0:04:39]} Rbe8 {[%emt 0:05:38]} 23. Re1 {[%emt 0:09:47]} a5 {[%emt 0:01:18]} 24. Bc1 {[%emt 0:03:11]} e5 {[%emt 0:03:02]} 25. g4 {[%emt 0:02:45]} exf4 {[%emt 0:01:35]} 26. gxf5 {[%emt 0:00:22]} Rxf5 {[%emt 0:00:55]} 27. Qd1 {[%emt 0:04:20]} Rff8 {[%emt 0:01:03]} 28. Kh1 {[%emt 0:01:05]} g5 {[%emt 0:05:50]} 29. Rg1 {[%emt 0:01:50]} Ne5 {[%emt 0:00:46]} 30. Rxg5 {[%emt 0:00:14]} Nxf3 {[%emt 0:00:10]} 31. Qxf3 {[%emt 0:00:05]} Re5 {[%emt 0:00:20]} 32. Rg1 {[%emt 0:01:16]} Re6 {[%emt 0:01:41]} 33. Ng4 {[%emt 0:06:17]} Qd7 {[%emt 0:04:15]} 34. Bxf4 {[%emt 0:02:16]} Rg6 {[%emt 0:00:18]} 35. Qg3 {[%emt 0:00:59]} Bxb2 {[%emt 0:00:56]} 36. Qh4 {[%emt 0:02:50]} Bg7 {[%emt 0:01:39]} 37. Bh6 {[%emt 0:00:50]} Kh8 {[%emt 0:01:06]} 38. Bxg7+ {[%emt 0:00:33]} Qxg7 {[%emt 0:00:13]} 39. Qe1 {[%emt 0:00:08]} b2 {[%emt 0:00:57]} 0-1